[Event "German-ch Blitz Women 2022"]
[Site "Magdeburg"]
[Date "2022.08.13"]
[Round "17.2"]
[White "Schuster, Rebekka"]
[Black "Heil, Marina"]
[Result "0-1"]
[ECO "B07"]
[WhiteElo "1815"]
[BlackElo "1926"]
[Annotator "TA"]
[PlyCount "42"]
[EventDate "2022.08.10"]
[EventType "tourn"]
[EventCountry "GER"]
[SourceTitle "playchess.com"]
[Source "ChessBase"]
[SourceQuality "1"]
[TimeControl "180+2"]

{[%evp 9,42,40,14,23,58,48,51,0,31,21,44,20,81,72,67,32,71,64,100,97,105,51,327,0,181,-634,-627,-625,-90,-908,-889,-1206,-1178,-1206,-1201]} 1. e4 {[%emt 0:00:00]} d6 {[%emt 0:00:01]} 2. d4 {[%emt 0:00:02]} Nf6 {[%emt 0:00:02]} 3. Nc3 {[%emt 0:00:03]} Nbd7 {[%emt 0:00:02]} 4. Be3 {[%emt 0:00:13]} e5 {[%emt 0:00:02]} 5. f3 {[%emt 0:00:21]} Be7 {[%emt 0:00:09]} 6. Qd2 {[%emt 0:00:05] B07: Pirc Defence: Miscellaneous Systems.} h6 {[%emt 0:00:03]} 7. O-O-O {[%emt 0:00:03]} c6 {[%emt 0:00:04]} 8. d5 {[%emt 0:00:25]} ({Better is} 8. Nge2 $14) 8... Qc7 {[%emt 0:00:20]} 9. g4 {[%emt 0:00:18]} a6 {[%emt 0:00:16]} 10. h4 {[%emt 0:00:02][%cal Bh2h4,Bh4g5][%mdl 32] [#]} (10. Nge2 $5 {[%cal Rd5c6]}) 10... b5 $146 {[%emt 0:00:11]} (10... cxd5 $1 $11 {remains equal.} 11. Nxd5 Nxd5 12. exd5 b5) ({Predecessor:} 10... c5 11. Nh3 b5 12. g5 Nh5 13. f4 Ng3 14. Rg1 Nxf1 15. Rdxf1 Nb6 16. Nf2 b4 {1-0 (37) Bellebcir,T-Bouhadjar,N (1897) Algiers 2014}) 11. dxc6 $16 {[%emt 0:00:03]} Qxc6 {[%emt 0:00:02]} 12. Nh3 {[%emt 0:00:47]} Nb6 {[%emt 0:00:06]} 13. g5 {[%emt 0:00:06]} hxg5 {[%emt 0:00:12]} 14. hxg5 {[%emt 0:00:32]} ({Not} 14. Nxg5 Bb7 $15) 14... Nfd7 15. Nd5 {[%emt 0:00:16]} (15. Nf2 $16 Rxh1 16. Nxh1) 15... Nc4 $2 {[%emt 0:00:16][%mdl 8192] [#]} (15... Nxd5 $14 16. exd5 Qc7) 16. Qg2 $2 {[%emt 0:00:04]} ({White must play} 16. Bxc4 $18 bxc4 17. g6 fxg6 18. Qg2) 16... Ndb6 $2 {[%emt 0:00:09]} (16... Nxe3 $11 {and Black is okay.} 17. Nxe3 Qc5) 17. Be2 $4 {[%emt 0:00:10][%mdl 8192]} (17. Bxc4 $18 Nxc4 18. g6) 17... Nxd5 $19 {[%emt 0:00:07]} 18. exd5 {[%emt 0:00:01]} Qc7 {[%emt 0:00:03]} (18... Nxe3 $19 {[%csl Ge3][%cal Rc6c2]} 19. dxc6 Nxg2) 19. Bd3 {[%emt 0:00:02][%mdl 8192] [#]} Nxe3 {[%emt 0:00:04] Black is clearly winning.} 20. Qe2 {[%emt 0:00:04]} Nxd1 {[%emt 0:00:03]} 21. Rxd1 {[%emt 0:00:00]} Rxh3 {[%emt 0:00:03] Weighted Error Value: White=1.44/Black=1.05} 0-1

[Event "German-ch Blitz Women 2022"]
[Site "Magdeburg"]
[Date "2022.08.13"]
[Round "17.3"]
[White "Zschischang, Marine"]
[Black "Leveikina, Jevgenija"]
[Result "0-1"]
[ECO "D10"]
[WhiteElo "2083"]
[BlackElo "2061"]
[Annotator "NA RC"]
[PlyCount "58"]
[EventDate "2022.08.10"]
[EventType "tourn"]
[EventCountry "GER"]
[SourceTitle "playchess.com"]
[Source "ChessBase"]
[SourceQuality "1"]
[TimeControl "180+2"]

1. d4 {[%emt 0:00:01]} c6 {[%emt 0:00:00]} 2. c4 {[%emt 0:00:01]} d5 {[%emt 0:00:01]} 3. cxd5 {[%emt 0:00:01]} cxd5 {[%emt 0:00:02]} 4. Nc3 {[%emt 0:00:01]} Nc6 {[%emt 0:00:01]} 5. Nf3 {[%emt 0:00:01]} Nf6 {[%emt 0:00:00]} 6. Ne5 {[%emt 0:00:01]} Bf5 {[%emt 0:00:06]} 7. e3 {[%emt 0:00:01]} e6 {[%emt 0:00:02]} 8. g4 {[%emt 0:00:01]} Bg6 {[%emt 0:00:09]} 9. h4 {[%emt 0:00:01]} h5 {[%emt 0:00:56]} 10. Nxg6 {[%emt 0:00:02]} fxg6 {[%emt 0:00:02]} 11. g5 {[%emt 0:00:03]} Nd7 {[%emt 0:00:06]} 12. Bd3 {[%emt 0:00:03]} Ne7 {[%emt 0:00:08]} 13. Qb3 {[%emt 0:00:33]} Qb6 {[%emt 0:00:06]} 14. Qa4 {[%emt 0:00:23]} Nf5 {[%emt 0:00:33]} 15. Bd2 {[%emt 0:00:13]} Be7 {[%emt 0:00:18]} 16. Bb5 {[%emt 0:00:12]} Rd8 {[%emt 0:00:11]} 17. Ne2 {[%emt 0:00:39]} a6 {[%emt 0:00:02]} 18. Bd3 {[%emt 0:00:21]} Qd6 {[%emt 0:00:13]} 19. Nf4 {[%emt 0:00:13]} Kf7 {[%emt 0:00:07]} 20. a3 {[%emt 0:00:12]} b5 {[%emt 0:00:02]} 21. Qa5 {[%emt 0:00:11]} Qb6 {[%emt 0:00:09]} 22. Rc1 {[%emt 0:00:10]} Rc8 {[%emt 0:00:02]} 23. Bxf5 {[%emt 0:00:10]} gxf5 {[%emt 0:00:03]} 24. Ke2 {[%emt 0:00:05]} g6 {[%emt 0:00:05]} 25. Bb4 {[%emt 0:00:05]} Rc4 {[%emt 0:00:08]} 26. b3 {[%emt 0:00:07]} Bxb4 {[%emt 0:00:04]} 27. Qxb6 Nxb6 28. bxc4 Bxa3 29. Ra1 Nxc4 0-1

[Event "German-ch Blitz Women 2022"]
[Site "Magdeburg"]
[Date "2022.08.13"]
[Round "17.4"]
[White "Staerk, Elisa"]
[Black "Kosovska, Olena"]
[Result "1-0"]
[ECO "E91"]
[WhiteElo "1947"]
[BlackElo "1831"]
[Annotator "TA"]
[PlyCount "77"]
[EventDate "2022.08.10"]
[EventType "tourn"]
[EventCountry "GER"]
[SourceTitle "playchess.com"]
[Source "ChessBase"]
[SourceQuality "1"]
[TimeControl "180+2"]

{[%evp 15,77,83,89,61,56,54,69,36,32,36,27,13,31,48,36,-48,35,24,7,0,0,0,0,-33,0,-13,-8,-11,18,-32,14,14,14,14,8,3,14,0,79,84,91,0,15,0,50,7,86,75,121,27,239,87,503,487,1296,1343,1279,1279,6322,6429,29997,29997,29998,29999]} 1. d4 g6 2. Nf3 Bg7 3. c4 Nf6 4. Nc3 O-O 5. e4 d6 6. Be2 Nbd7 7. O-O c5 8. d5 Ng4 9. Bf4 {E91: King's Indian: Classical: 6 Be2, unusual replies including 6...c5 and 6...Bg4.} Nge5 10. Nxe5 Nxe5 11. Qc2 {[#] White is slightly better.} a6 $146 ({Predecessor:} 11... f5 12. f3 fxe4 13. fxe4 Bg4 14. Bxe5 Bxe2 15. Qxe2 Bxe5 16. Rxf8+ Qxf8 {0-1 (56) Schjolin,J (1160)-Jensen,H (1473) Helsingor 2018}) 12. a4 Bd7 13. a5 b5 14. axb6 $1 Qxb6 15. Be3 (15. Bc1 $14) 15... Ng4 ({Black should try} 15... Rfb8 $1 $15) 16. Bxg4 Bxg4 17. f3 {[#] Na4 is the strong threat.} Bd7 18. Rfb1 {[%cal Ob2b4]} a5 {[%cal Ba6a5,Ba5a4][%mdl 32]} 19. Ra2 f5 (19... Qb4 $5 {[%cal Rb4c4]}) 20. Bg5 fxe4 21. Nxe4 Rf7 22. Rba1 (22. Be3 $11) 22... h6 (22... Rb8 $15) 23. Bd2 $11 {[%cal Rd2a5]} a4 24. Bc3 {White wants to play Bxg7.} (24. Nc3 {keeps more tension.} g5 25. Nxa4 Rxa4 26. Rxa4 Bxa4 27. Rxa4 Qxb2 28. Ra8+) 24... Rb8 25. Bxg7 Kxg7 26. Nc3 e6 (26... Qb3 $11 {keeps the balance.} 27. Qxb3 Rxb3) 27. dxe6 $16 ({Of course not} 27. Nxa4 Bxa4 28. Qxa4 (28. Rxa4 exd5 29. Rb1 dxc4 $11) 28... exd5 $11) 27... Bxe6 28. Nxa4 (28. Qd3 $16) 28... Qb4 29. Rc1 Kh7 ({Better is} 29... Rf4 $11) 30. Qe4 Bf5 (30... Qd2 $11 {remains equal.} 31. Raa1 Bf5) 31. Qd5 {[%csl LRd6,LRf7]} Rd7 (31... Rbb7 $142) 32. Raa1 (32. Nc3 $16 {Hoping for g4.} Re8 33. Qd2) 32... Qb3 $2 {[#]} (32... Re8 $11) 33. Qd2 $2 (33. Rc3 $1 $18 {[%cal Rc3b3]} Qb7 34. g4) 33... d5 $2 {[%mdl 8192]} (33... Qd3 $16 34. Qxd3 Bxd3) 34. Nxc5 $18 Qxb2 (34... Qb6 $142) 35. Qxb2 Rxb2 36. Nxd7 Bxd7 37. cxd5 {Intending Ra7 and mate.} Bb5 38. Rc7+ Kg8 39. Ra8+ {Weighted Error Value: White=0.31/Black=0.85} 1-0

[Event "German-ch Blitz Women 2022"]
[Site "Magdeburg"]
[Date "2022.08.13"]
[Round "17.5"]
[White "Melamed, Tatjana"]
[Black "Falke, Ornella"]
[Result "1-0"]
[ECO "B50"]
[WhiteElo "2380"]
[BlackElo "1912"]
[Annotator "TA"]
[PlyCount "60"]
[EventDate "2022.08.10"]
[EventType "tourn"]
[EventCountry "GER"]
[SourceTitle "playchess.com"]
[Source "ChessBase"]
[SourceQuality "1"]
[TimeControl "180+2"]

{[%evp 13,60,18,22,0,6,6,19,7,13,2,28,21,19,27,35,0,0,0,30,6,6,0,12,0,0,-16,0,-31,0,-41,0,0,0,-37,-23,-194,0,0,41,-9,-4,-3,-9,-67,1216,1196,1289,1245,1437]} 1. e4 {[%emt 0:00:01]} c5 {[%emt 0:00:01]} 2. Nf3 {[%emt 0:00:02]} d6 {[%emt 0:00:00]} 3. c3 {[%emt 0:00:03]} Nf6 {[%emt 0:00:03]} 4. Bc4 {[%emt 0:00:01]} e6 {[%emt 0:00:07]} 5. Qe2 {[%emt 0:00:02]} Nc6 {[%emt 0:00:03]} 6. Bb3 {[%emt 0:00:01]} Be7 {[%emt 0:00:24]} 7. O-O {[%emt 0:00:02]} O-O {[%emt 0:00:02]} 8. d3 {[%emt 0:00:02] B50: Sicilian: 2...d6, Miscellaneous.} Qc7 {[%emt 0:00:09]} 9. Re1 {[%emt 0:00:01]} Re8 {[%emt 0:00:03]} 10. Bf4 {[%emt 0:00:02] [#] The position is equal.} b5 $146 {[%emt 0:00:34]} ({Predecessor:} 10... Na5 11. Bc2 e5 12. Bg5 h6 13. Be3 Bf8 14. Nbd2 Be6 15. Rac1 b5 16. d4 Nc4 {1-0 (66) Plat,V (2398)-Jurcik,M (2352) Czech Republic 2009}) 11. Nbd2 {[%emt 0:00:02]} a5 {[%emt 0:00:04]} 12. a4 {[%emt 0:00:01]} Ba6 {[%emt 0:00:13]} 13. axb5 {[%emt 0:00:11]} Bxb5 {[%emt 0:00:01]} 14. Bc4 {[%emt 0:00:01]} Bxc4 {[%emt 0:00:13]} 15. Nxc4 {[%emt 0:00:02]} Nd7 {[%emt 0:00:13]} (15... Nh5 $5 {[%cal Rh5f4]} 16. Bd2 d5 $11) 16. d4 {[%emt 0:00:32]} cxd4 {[%emt 0:00:22]} 17. cxd4 {[%emt 0:00:02]} e5 {[%emt 0:00:08]} 18. dxe5 {[%emt 0:00:03]} dxe5 {[%emt 0:00:01]} 19. Bg3 {[%emt 0:00:04]} Bb4 {[%emt 0:00:02]} 20. Rec1 {[%emt 0:00:04][%cal Oc4e5]} Qb7 {[%emt 0:00:23]} 21. Ne3 {[%emt 0:00:02]} Rad8 {[%emt 0:00:11]} 22. Nd5 {[%emt 0:00:01]} Bd6 {[%emt 0:00:14]} 23. Qc4 {[%emt 0:00:18]} Rc8 {[%emt 0:00:08]} 24. Ng5 $2 {[%emt 0:00:41] [#]} (24. Qe2 $11 {and White has nothing to worry.}) 24... h6 $2 {[%emt 0:00:02]} ({Better is} 24... Nd4 $1 $19 25. Qf1 Rxc1 26. Rxc1 Qxb2) 25. Nxf7 $1 $11 {[%emt 0:00:10]} Kxf7 {[%emt 0:00:01]} (25... Nd4 $5 {[%cal Rc8c4]} 26. Nxd6 Rxc4 27. Nxb7 Rxc1+ 28. Rxc1 Ne2+ 29. Kf1 Nxc1 30. Nxa5 Nf6 $11) 26. Nb6+ {[%emt 0:00:13]} (26. Nc7+ $1 $14 Kf8 27. Nxe8 Kxe8 28. Qe6+ Be7 29. Qg8+ Bf8 30. h3) 26... Kf8 {[%emt 0:00:05]} 27. Nxc8 Rxc8 {[%emt 0:00:01]} 28. Qe6 {[%emt 0:00:03]} ({White should play} 28. h3 $11) 28... Nc5 $2 {[%mdl 8192] [#]} 29. Qxd6+ $18 {[%emt 0:00:03]} Qe7 {[%emt 0:00:03]} 30. Qxc5 {[%emt 0:00:02]} Rc7 {Weighted Error Value: White=0.36/Black=0.26 (precise)} 1-0

[Event "German-ch Blitz Women 2022"]
[Site "Magdeburg"]
[Date "2022.08.13"]
[Round "17.6"]
[White "Schulze, Lara"]
[Black "Stangl, Anita"]
[Result "0-1"]
[ECO "C05"]
[WhiteElo "2292"]
[BlackElo "2023"]
[Annotator "TA"]
[PlyCount "48"]
[EventDate "2022.08.10"]
[EventType "tourn"]
[EventCountry "GER"]
[SourceTitle "playchess.com"]
[Source "ChessBase"]
[SourceQuality "1"]
[TimeControl "180+2"]

{[%evp 18,47,30,35,28,-24,-12,-9,0,-214,-214,-285,-201,-200,-183,-1678,-1659,-29997,-29996,-29998,-29997,-29997,-29994,-29998,-29994,-29995,-29990,-29990,-29991,-29995,-29994,-29999]} 1. e4 e6 2. d4 d5 3. Nd2 Nf6 4. e5 Nfd7 5. f4 c5 6. Ndf3 Nc6 7. c3 Qb6 8. h4 cxd4 9. cxd4 Bb4+ 10. Kf2 f6 {aiming for ...fxe5. C05: French Tarrasch: 3...Nf6 4 e5 Nfd7, 5 f4 and 5 Bd3 sidelines.} 11. a3 ({White should try} 11. Be3) 11... Be7 $11 {...fxe5 is the strong threat.} 12. Kg3 O-O {[#] The position is equal.} 13. Rh3 $146 (13. Nh3 $11 {and White is okay.}) ({Predecessor:} 13. b4 fxe5 14. fxe5 Rf5 15. Bf4 Nf8 16. b5 Ng6 17. Bd3 Rxf4 18. Bxg6 Rxd4 19. Nxd4 Nxd4 {0-1 (35) Cernousek,L (2352)-Simacek,P (2421) Cartak 2005}) 13... fxe5 $19 14. fxe5 {[#]} Ndxe5 $1 {[%mdl 512]} 15. dxe5 Nxe5 16. Kh2 $2 (16. Nxe5 Qxg1 17. Be2 Qf2+ 18. Kh2) 16... Ng4+ 17. Kg3 Qf2+ {Black mates.} 18. Kxg4 e5+ 19. Kh5 Be6 20. Ng5 g6+ 21. Kh6 Bxh3 22. Qxd5+ Kh8 {[%cal Rf2h4]} 23. h5 {[#]} Rf5 $1 {[%cal Re7f8]} 24. N1xh3 (24. Nf7+ Rxf7) 24... Bf8# {White did not feel at home in the position after the opening.  Weighted Error Value: White=1.08/Black=0.11 (very precise)} 0-1

[Event "German-ch Blitz Women 2022"]
[Site "Magdeburg"]
[Date "2022.08.13"]
[Round "17.7"]
[White "Nikolaeva, Mariya A"]
[Black "Wulf, Constanze"]
[Result "1-0"]
[ECO "B01"]
[WhiteElo "1309"]
[BlackElo "1835"]
[Annotator "NA RC COMBH"]
[PlyCount "65"]
[EventDate "2022.08.10"]
[EventType "tourn"]
[EventCountry "GER"]
[SourceTitle "playchess.com"]
[Source "ChessBase"]
[SourceQuality "1"]
[TimeControl "180+2"]

1. e4 {[%emt 0:00:01]} d5 {[%emt 0:00:01]} 2. exd5 {[%emt 0:00:01]} Qxd5 {[%emt 0:00:01]} 3. Nc3 {[%emt 0:00:02]} Qd6 {[%emt 0:00:01]} 4. d4 {[%emt 0:00:01]} Nf6 {[%emt 0:00:03]} 5. Nf3 {[%emt 0:00:02]} a6 {[%emt 0:00:01]} 6. Ne5 {[%emt 0:00:03]} g6 {[%emt 0:00:13]} 7. Nc4 {[%emt 0:00:12]} Qd8 {[%emt 0:00:07]} 8. Be2 {[%emt 0:00:02]} Bg7 {[%emt 0:00:03]} 9. Be3 {[%emt 0:00:01]} O-O {[%emt 0:00:06]} 10. Qd2 {[%emt 0:00:09]} Re8 {[%emt 0:00:02]} 11. Ne5 {[%emt 0:00:04]} Bf5 {[%emt 0:00:25]} 12. g4 {[%emt 0:00:15]} Ne4 {[%emt 0:00:15]} 13. Nxe4 {[%emt 0:00:07]} Bxe4 {[%emt 0:00:01]} 14. f3 {[%emt 0:00:02]} Bxe5 {[%emt 0:00:23]} 15. fxe4 {[%emt 0:00:06]} Bg7 {[%emt 0:00:06]} 16. O-O-O {[%emt 0:00:02]} Nc6 {[%emt 0:00:03]} 17. c3 {[%emt 0:00:04]} b5 {[%emt 0:00:06]} 18. h4 {[%emt 0:00:02]} Rb8 {[%emt 0:00:10]} 19. h5 {[%emt 0:00:04]} a5 {[%emt 0:00:32]} 20. Bh6 {[%emt 0:00:03]} Bh8 {[%emt 0:00:11]} 21. hxg6 {[%emt 0:00:02]} fxg6 {[%emt 0:00:03]} 22. Be3 {[%emt 0:00:24]} b4 {[%emt 0:00:05]} 23. c4 {[%emt 0:00:01]} Qd7 {[%emt 0:00:22]} 24. e5 {[%emt 0:00:19]} a4 {[%emt 0:00:06]} 25. Bf3 {[%emt 0:00:13]} b3 {[%emt 0:00:07]} 26. a3 {[%emt 0:00:01]} Nd8 {[%emt 0:00:10]} 27. Qh2 {[%emt 0:00:07]} e6 {[%emt 0:00:03]} 28. d5 {[%emt 0:00:06]} exd5 {[%emt 0:00:04]} 29. Bxd5+ {[%emt 0:00:01]} Ne6 {[%emt 0:00:06]} 30. Bxe6+ {[%emt 0:00:21]} Qxe6 {[%emt 0:00:02]} 31. Qxh7+ {[%emt 0:00:02]} Kf8 {[%emt 0:00:00]} 32. Qxh8+ {[%emt 0:00:02]} Kf7 {[%emt 0:00:04]} 33. Rh7# {[%emt 0:00:02]} 1-0

[Event "German-ch Blitz Women 2022"]
[Site "Magdeburg"]
[Date "2022.08.13"]
[Round "17.8"]
[White "Zhou, Lepu Coco"]
[Black "Doll, Rebecca"]
[Result "1/2-1/2"]
[ECO "C92"]
[WhiteElo "1986"]
[BlackElo "1933"]
[Annotator "TA"]
[PlyCount "95"]
[EventDate "2022.08.10"]
[EventType "tourn"]
[EventCountry "GER"]
[SourceTitle "playchess.com"]
[Source "ChessBase"]
[SourceQuality "1"]
[TimeControl "180+2"]

{[%evp 23,95,0,25,-14,0,-21,-15,-47,0,-140,-110,-100,-104,-100,-76,-126,-95,-167,-155,-187,-170,-210,-201,-281,-234,-227,-219,-597,-602,-584,-499,-668,-689,-681,-602,-611,-594,-598,-189,-695,-523,-505,-294,-306,-291,-401,-404,-400,-263,-470,-449,-599,-591,-635,-623,-599,-439,-696,-449,-761,-241,-237,567,-298,-236,-242,-228,-495,0,-385,0,-447,0,-369]} 1. e4 {[%emt 0:00:02]} e5 {[%emt 0:00:01]} 2. Nf3 {[%emt 0:00:01]} Nc6 {[%emt 0:00:01]} 3. Bb5 {[%emt 0:00:02]} a6 {[%emt 0:00:01]} 4. Ba4 {[%emt 0:00:01]} Nf6 {[%emt 0:00:02]} 5. O-O {[%emt 0:00:01]} Be7 {[%emt 0:00:02]} 6. Re1 {[%emt 0:00:02]} b5 {[%emt 0:00:01]} 7. Bb3 {[%emt 0:00:01]} O-O {[%emt 0:00:07]} 8. h3 {[%emt 0:00:03]} d6 {[%emt 0:00:03]} 9. c3 {[%emt 0:00:01]} Bb7 {[%emt 0:00:03]} 10. d4 {[%emt 0:00:04][%cal Bd2d4,Bd4d5][%mdl 32]} Re8 {[%emt 0:00:09]} 11. Ng5 {[%emt 0:00:07]} Rf8 {[%emt 0:00:02]} 12. Nf3 {[%emt 0:00:01]} Re8 {[%emt 0:00:02]} 13. d5 {[%emt 0:00:09] 13.Bc2 is setting a new trend. C92: Closed Ruy Lopez: 9...Be6, Karpov and Flohr-Zaitsev Variations.} Nb8 {[%emt 0:00:21]} 14. Nbd2 {[%emt 0:00:04]} c6 {[%emt 0:00:09]} 15. Nf1 {[%emt 0:00:02]} (15. dxc6 {is interesting.} Bxc6 16. Ng5 Rf8 17. Bc2) 15... Nbd7 {[%emt 0:00:27] [#]} (15... cxd5 $15 16. exd5 Nbd7) 16. g4 $146 {[%emt 0:00:04]} (16. dxc6 $11 Bxc6 17. Ng3) ({Predecessor:} 16. dxc6 Bxc6 17. Ng5 Rf8 18. Ng3 Nc5 19. Bc2 h6 20. Nf3 Re8 21. b4 Nb7 22. Be3 a5 23. Qc1 Bf8 24. Rd1 {½-½ (57) Stewart,M-Gray,G (1230) Cammeray 2010}) 16... cxd5 {[%emt 0:00:31]} 17. exd5 {[%emt 0:00:01]} Nb6 {[%emt 0:00:03][%cal Rf6d5]} 18. Ne3 {[%emt 0:00:05]} Bf8 {[%emt 0:00:11]} 19. Kh2 {[%emt 0:00:08]} (19. a4 $142) 19... Rc8 {[%emt 0:00:16]} 20. Rg1 {[%emt 0:00:07]} (20. a4 $17 {was worth a try.}) 20... Rc5 $19 {[%emt 0:00:11]} 21. g5 {[%emt 0:00:23]} Nfxd5 {[%emt 0:00:04]} 22. Nf5 {[%emt 0:00:02]} Qd7 {[%emt 0:00:26]} 23. Bc2 {[%emt 0:00:08]} Nf4 {[%emt 0:00:12]} 24. Bxf4 {[%emt 0:00:09]} exf4 {[%emt 0:00:01]} 25. Qd3 {[%emt 0:00:05]} (25. N5d4) 25... Be4 {[%emt 0:00:05]} 26. Nh6+ {[%emt 0:00:09][%cal Bf5h6,Bh6g4,Bg4e5][%mdl 32]} Kh8 {[%emt 0:00:10]} 27. Qd4 {[%emt 0:00:26]} Bxc2 {[%emt 0:00:02]} 28. Rae1 {[%emt 0:00:03]} Rxe1 {[%emt 0:00:03]} 29. Rxe1 {[%emt 0:00:01]} Bg6 {[%emt 0:00:04]} 30. Ng4 {[%emt 0:00:09]} Rc4 $2 {[%emt 0:00:03]} 31. Qd2 $2 {[%emt 0:00:03]} (31. Qxb6 Qc8 32. Qa7) 31... d5 {[%emt 0:00:02]} 32. Nfe5 {[%emt 0:00:02]} Qc7 {[%emt 0:00:01]} 33. Nxc4 {[%emt 0:00:04]} dxc4 {[%emt 0:00:02]} ({Not} 33... Nxc4 $2 34. Qxd5 Kg8 35. b3 $19) 34. f3 {[%emt 0:00:15]} Kg8 {[%emt 0:00:06]} 35. Ne5 {[%emt 0:00:09]} Qd6 {[%emt 0:00:02]} 36. Qf2 {[%emt 0:00:19]} (36. Qxd6 Bxd6 37. Rd1) 36... Nd5 {[%emt 0:00:01] Hoping for ...Ne3.} 37. Ng4 {[%emt 0:00:03]} Ne3 {[%emt 0:00:02]} 38. Kh1 {[%emt 0:00:13]} Nxg4 {[%emt 0:00:02]} 39. hxg4 {[%emt 0:00:02]} Qd3 {[%emt 0:00:01] White must now prevent ...Qd5.} 40. Re8 {[%emt 0:00:04]} (40. Kg2 $142) 40... Qd7 {[%emt 0:00:01]} 41. Qe2 {[%emt 0:00:04]} (41. Rb8 $142) 41... Bd3 $2 {[%emt 0:00:02]} (41... f5 42. Qe6+ Qxe6 43. Rxe6 fxg4) 42. Qe5 {[%emt 0:00:02] [#] aiming for Qb8.} Bg6 $4 {[%emt 0:00:03][%mdl 8192] [#]} (42... f6 $1 $19 {[%cal Rf6e5]} 43. gxf6 gxf6 44. Qe6+ Qxe6 45. Rxe6 a5) 43. Rb8 $4 {[%emt 0:00:05][%mdl 8192]} (43. Qb8 $1 $18 {[%csl Gb8][%cal Re8f8] was the only winning move.} Qxe8 44. Qxe8) 43... Qd1+ {[%emt 0:00:01]} 44. Kg2 {[%emt 0:00:01] White threatens Qe7 and mate.} Qd2+ {[%emt 0:00:01]} 45. Kg1 $2 {[%emt 0:00:02]} (45. Kh3 {only move.} Qe3 46. Qxe3 fxe3 47. Re8) 45... Qd1+ $2 {[%emt 0:00:02]} (45... Qe3+ $19 46. Qxe3 fxe3) 46. Kf2 $2 {[%emt 0:00:02][%mdl 8192]} (46. Kg2 $11 {and White is okay.} Qd2+ 47. Kh3) 46... Qd2+ {[%emt 0:00:00]} 47. Kg1 $1 {[%emt 0:00:01]} Qd1+ {[%emt 0:00:03]} 48. Kf2 {[%emt 0:00:01][%mdl 32768] Weighted Error Value: White=0.90/Black=0.51. An unexpected result.} 1/2-1/2

[Event "German-ch Blitz Women 2022"]
[Site "Magdeburg"]
[Date "2022.08.13"]
[Round "17.9"]
[White "Muetsch, Annmarie"]
[Black "Kunze, Kerstin"]
[Result "1-0"]
[ECO "C50"]
[WhiteElo "2249"]
[BlackElo "2020"]
[Annotator "TA"]
[PlyCount "48"]
[EventDate "2022.08.10"]
[EventType "tourn"]
[EventCountry "GER"]
[SourceTitle "playchess.com"]
[Source "ChessBase"]
[SourceQuality "1"]
[TimeControl "180+2"]

{[%evp 10,48,18,19,37,30,31,27,56,21,42,7,40,-69,-38,-35,-1,-8,9,0,0,0,0,-22,-11,-22,0,14,13,30,51,23,68,56,82,22,44,-268,279,275,668]} 1. e4 {[%emt 0:00:01]} e5 {[%emt 0:00:01]} 2. Nf3 {[%emt 0:00:02]} Nc6 {[%emt 0:00:02]} 3. Bc4 {[%emt 0:00:01]} Nf6 {[%emt 0:00:02][%cal Bg8f6,Bf6d5,Bd5f4][%mdl 32]} 4. d3 {[%emt 0:00:01]} Bc5 {[%emt 0:00:21]} 5. c3 {[%emt 0:00:02]} O-O {[%emt 0:00:04]} 6. Nbd2 {[%emt 0:00:02][%cal Bb1d2,Bd2e4,Be4g3][%mdl 32]} d5 {[%emt 0:00:14] C54: Giuoco Piano: 4 c3 Nf6, main lines with 5 d4 and 5 d3.} 7. exd5 {[%emt 0:00:03]} Nxd5 {[%emt 0:00:01]} 8. Ne4 {[%emt 0:00:10]} Bb6 {[%emt 0:00:08] White has an edge.} 9. O-O {[%emt 0:00:02]} (9. a4 $5 {[%cal Rb2b4]}) 9... Bg4 {[%emt 0:00:17]} 10. Ng3 {[%emt 0:00:17]} Nf4 {[%emt 0:01:06] [#]} 11. d4 $146 {[%emt 0:00:04]} ({Better is} 11. h3 $14 Be6 12. b4) ({Predecessor:} 11. h3 Be6 12. Bxe6 Nxe6 13. Re1 Qd6 14. Nf5 Qc5 15. Be3 Qb5 16. b3 Bxe3 17. Rxe3 {1-0 (37) Paiva,H (2065)-Maklakova,N (1828) Chess.com INT 2021}) 11... Ng6 {[%emt 0:00:09][%cal Re5d4]} 12. d5 {[%emt 0:00:15]} Nce7 {[%emt 0:00:15]} (12... e4 {with more complications.} 13. dxc6 exf3 14. Qxd8 Raxd8 15. cxb7 Ne5) 13. h3 $132 {[%emt 0:00:03][%mdl 2048] White is fighting back} Bc8 {[%emt 0:00:11]} 14. Re1 {[%emt 0:00:05]} Nf5 {[%emt 0:00:05]} 15. Nxf5 {[%emt 0:00:08]} Bxf5 {[%emt 0:00:01]} 16. Be3 {[%emt 0:00:44]} Qd6 {[%emt 0:00:16]} 17. Qe2 {[%emt 0:00:19]} Rad8 {[%emt 0:00:01]} 18. Rad1 {[%emt 0:00:04]} Bxe3 {[%emt 0:00:05]} 19. Qxe3 {[%emt 0:00:01]} Rfe8 {[%emt 0:00:03]} 20. Qxa7 {[%emt 0:00:12]} b6 {[%emt 0:00:01]} 21. Qa4 {[%emt 0:00:12][%cal Of3d4]} Nf4 {[%emt 0:00:07] [#] White must now prevent ...e4.} 22. Bf1 {[%emt 0:00:21]} (22. Bb5 $16 Re7 23. Bf1) 22... Qg6 {[%emt 0:00:05] Threatens to win with ...Nxh3+.} 23. Kh2 {[%emt 0:00:04][%mdl 8192]} (23. Rxe5 Nxh3+ 24. Kh2 {[#]} Qd6 $1 $17) (23. Nxe5 $14 {stays ahead.} Nxh3+ 24. Kh2) 23... Qh5 $4 {[%emt 0:00:07][%mdl 8192]} (23... Bc2 $19 24. Qa7 Bxd1 25. Rxd1 Rxd5 26. Rxd5 Nxd5) 24. Nxe5 $18 {[%emt 0:00:12]} ({Not} 24. Rxe5 Rxe5 25. Qxf4 (25. Nxe5 Bxh3 26. Qxf4 Bg4+ 27. Kg1 Bxd1 $11) 25... Rexd5 26. Rxd5 (26. g4 Bxg4 27. Rxd5 Rxd5 $16) 26... Rxd5 $16) 24... f6 $2 {[%emt 0:00:00] Weighted Error Value: White=0.45/Black=0.53} (24... Bc2 25. Qxc2 Rxe5) 1-0